fUST/lending_fUST_20250408
["ID","MTS","AMOUNT","RATE_DAILY","PERIOD"]
[357397473,1744043448751,-151.0,0.00027397,7]
[357397474,1744043448761,-201.96222,0.00027397,7]
[357397475,1744043448770,-591.7,0.00027397,7]
[357397476,1744043448780,-500.0,0.00027397,7]
[357397477,1744043448790,-500.0,0.00027397,7]
[357397478,1744043448799,-617.8,0.00027397,7]
[357397479,1744043448809,-500.0,0.00027397,7]
[357397480,1744043448819,-500.0,0.00027397,7]
[357397481,1744043448829,-500.0,0.00027397,7]
[357397482,1744043448839,-2711.38,0.00027397,7]
[357397483,1744043448849,-500.0,0.00027397,7]
[357397484,1744043448859,-500.0,0.00027397,7]
[357397485,1744043448868,-2175.12,0.00027397,7]
[357397486,1744043448878,-500.0,0.00027397,7]
[357397487,1744043448890,-500.0,0.00027397,7]
[357397488,1744043448900,-500.0,0.00027397,7]
[357397489,1744043448911,-3307.38,0.00027397,7]
[357397490,1744043448922,-506.97213706,0.00027397,7]
[357397491,1744043448932,-500.0,0.00027397,7]
[357397492,1744043448943,-283.040411,0.00027397,7]
[357397493,1744043448953,-283.040411,0.00027397,7]
[357397494,1744043448964,-283.040411,0.00027397,7]
[357397495,1744043448975,-283.040411,0.00027397,7]
[357397496,1744043448984,-500.0,0.00027397,7]
[357397497,1744043448995,-500.0,0.00027397,7]
[357397498,1744043449006,-500.0,0.00027397,7]
[357397499,1744043449017,-500.0,0.00027397,7]
[357397500,1744043449027,-500.0,0.00027397,7]
[357397501,1744043449037,-1039.24,0.00027397,7]
[357397502,1744043449047,-500.0,0.00027397,7]
[357397503,1744043449057,-283.040411,0.00027397,7]
[357397504,1744043449067,-283.040411,0.00027397,7]
[357397505,1744043449077,-500.0,0.00027397,7]
[357397506,1744043449087,-151.0,0.00027397,7]
[357397507,1744043449097,-500.0,0.00027397,7]
[357397508,1744043449107,-283.040411,0.00027397,7]
[357397509,1744043449117,-1517.41,0.00027397,7]
[357397510,1744043449127,-283.040411,0.00027397,7]
[357397511,1744043449142,-1647.84,0.00027397,7]
[357397512,1744043449152,-500.0,0.00027397,7]
[357397513,1744043449163,-2917.45,0.00027397,7]
[357397514,1744043449173,-500.0,0.00027397,7]
[357397515,1744043449184,-500.0,0.00027397,7]
[357397516,1744043449194,-500.0,0.00027397,7]
[357397517,1744043449205,-500.0,0.00027397,7]
[357397518,1744043449215,-690.19,0.00027397,7]
[357397519,1744043449226,-533.61160234,0.00027397,7]
[357397520,1744043449237,-2702.92,0.00027397,7]
[357397521,1744043449247,-500.0,0.00027397,7]
[357397522,1744043449259,-500.0,0.00027397,7]
[357397523,1744043449270,-500.0,0.00027397,7]
[357397524,1744043449280,-500.0,0.00027397,7]
[357397525,1744043449293,-500.0,0.00027397,7]
[357397526,1744043449304,-500.0,0.00027397,7]
[357397527,1744043449314,-2735.19,0.00027397,7]
[357397528,1744043449326,-500.0,0.00027397,7]
[357397529,1744043449337,-500.0,0.00027397,7]
[357397530,1744043449347,-500.0,0.00027397,7]
[357397531,1744043449357,-500.0,0.00027397,7]
[357397532,1744043449367,-755.84,0.00027397,7]
[357397533,1744043449376,-500.0,0.00027397,7]
[357397534,1744043449389,-1545.4,0.00027397,7]
[357397535,1744043449400,-500.0,0.00027397,7]
[357397536,1744043449410,-2604.92,0.00027397,7]
[357397537,1744043449420,-500.0,0.00027397,7]
[357397538,1744043449431,-500.0,0.00027397,7]
[357397539,1744043449442,-500.0,0.00027397,7]
[357397540,1744043449451,-500.0,0.00027397,7]
[357397541,1744043449462,-500.0,0.00027397,7]
[357397542,1744043449471,-506.221688,0.00027397,7]
[357397543,1744043449481,-821.95,0.00027397,7]
[357397544,1744043449491,-500.0,0.00027397,7]
[357397545,1744043449500,-500.0,0.00027397,7]
[357397546,1744043449510,-1832.26,0.00027397,7]
[357397547,1744043449520,-670.664981,0.00027397,7]
[357397548,1744043449530,-670.664981,0.00027397,7]
[357397549,1744043449539,-500.0,0.00027397,7]
[357397550,1744043449548,-641.79,0.00027397,7]
[357397551,1744043449559,-500.0,0.00027397,7]
[357397552,1744043449570,-670.664981,0.00027397,7]
[357397553,1744043449581,-500.0,0.00027397,7]
[357397554,1744043449591,-500.0,0.00027397,7]
[357397555,1744043449602,-670.664981,0.00027397,7]
[357397556,1744043449612,-3142.48,0.00027397,7]
[357397557,1744043449622,-500.0,0.00027397,7]
[357397558,1744043449631,-500.0,0.00027397,7]
[357397559,1744043449644,-554.16,0.00027397,7]
[357397560,1744043449653,-500.0,0.00027397,7]
[357397561,1744043449663,-500.0,0.00027397,7]
[357397562,1744043449672,-1065.57,0.00027397,7]
[357397563,1744043449683,-500.0,0.00027397,7]
[357397564,1744043449693,-500.0,0.00027397,7]
[357397565,1744043449703,-500.0,0.00027397,7]
[357397566,1744043449713,-500.0,0.00027397,7]
[357397567,1744043449724,-616.76,0.00027397,7]
[357397568,1744043449734,-514.63,0.00027397,7]
[357397569,1744043449745,-508.1,0.00027397,7]
[357397570,1744043449754,-3034.79,0.00027397,7]
[357397571,1744043449764,-1680.31,0.00027397,7]
[357397572,1744043449773,-500.0,0.00027397,7]
[357397573,1744043449783,-587.24,0.00027397,7]
[357397574,1744043449793,-500.0,0.00027397,7]
[357397575,1744043449804,-500.0,0.00027397,7]
[357397576,1744043449813,-500.0,0.00027397,7]
[357397577,1744043449823,-1741.21,0.00027397,7]
[357397578,1744043449832,-815.25,0.00027397,7]
[357397579,1744043449842,-500.0,0.00027397,7]
[357397580,1744043449851,-1044.8,0.00027397,7]
[357397581,1744043449861,-500.0,0.00027397,7]
[357397582,1744043449870,-597.57,0.00027397,7]
[357397583,1744043449879,-500.0,0.00027397,7]
[357397584,1744043449889,-532.39,0.00027397,7]
[357397585,1744043449898,-500.0,0.00027397,7]
[357397586,1744043449908,-884.78,0.00027397,7]
[357397587,1744043449917,-500.0,0.00027397,7]
[357397588,1744043449927,-500.0,0.00027397,7]
[357397589,1744043449937,-500.0,0.00027397,7]
[357397590,1744043449946,-500.0,0.00027397,7]
[357397591,1744043449955,-500.0,0.00027397,7]
[357397592,1744043449965,-1065.11,0.00027397,7]
[357397593,1744043449975,-500.0,0.00027397,7]
[357397594,1744043449985,-500.0,0.00027397,7]
[357397595,1744043449994,-500.0,0.00027397,7]
[357397596,1744043450003,-500.0,0.00027397,7]
[357397597,1744043450013,-2114.81,0.00027397,7]
[357397598,1744043450022,-2114.81,0.00027397,7]
[357397599,1744043450031,-500.0,0.00027397,7]
[357397600,1744043450041,-2114.81,0.00027397,7]
[357397601,1744043450050,-2114.81,0.00027397,7]
[357397602,1744043450060,-2114.81,0.00027397,7]
[357397603,1744043450069,-2114.81,0.00027397,7]
[357397604,1744043450079,-500.0,0.00027397,7]
[357397605,1744043450088,-2114.81,0.00027397,7]
[357397606,1744043450099,-2114.81,0.00027397,7]
[357397607,1744043450109,-500.0,0.00027397,7]
[357397608,1744043450119,-500.0,0.00027397,7]
[357397609,1744043450130,-2114.81,0.00027397,7]
[357397610,1744043450142,-2114.81,0.00027397,7]
[357397611,1744043450152,-2114.81,0.00027397,7]
[357397612,1744043450161,-500.0,0.00027397,7]
[357397613,1744043450171,-500.0,0.00027397,7]
[357397614,1744043450180,-500.0,0.00027397,7]
[357397615,1744043450190,-1961.24,0.00027397,7]
[357397616,1744043450199,-500.0,0.00027397,7]
[357397617,1744043450208,-500.0,0.00027397,7]
[357397618,1744043450218,-539.59,0.00027397,7]
[357397619,1744043450227,-500.0,0.00027397,7]
[357397620,1744043450237,-577.08234402,0.00027397,7]
[357397621,1744043450248,-500.0,0.00027397,7]
[357397622,1744043450267,-500.0,0.00027397,7]
[357397623,1744043450276,-500.0,0.00027397,7]
[357397624,1744043450286,-500.0,0.00027397,7]
[357397625,1744043450296,-676.39,0.00027397,7]
[357397626,1744043450306,-500.0,0.00027397,7]
[357397627,1744043450316,-817.68,0.00027397,7]
[357397628,1744043450327,-500.0,0.00027397,7]
[357397629,1744043450336,-500.0,0.00027397,7]
[357397630,1744043450347,-500.0,0.00027397,7]
[357397631,1744043450356,-500.0,0.00027397,7]
[357397632,1744043450368,-549.74,0.00027397,7]
[357397633,1744043450377,-500.0,0.00027397,7]
[357397634,1744043450389,-2114.81,0.00027397,7]
[357397635,1744043450399,-2114.81,0.00027397,7]
[357397636,1744043450410,-2114.81,0.00027397,7]
[357397637,1744043450420,-2114.81,0.00027397,7]
[357397638,1744043450429,-500.0,0.00027397,7]
[357397639,1744043450440,-500.0,0.00027397,7]
[357397640,1744043450450,-2114.81,0.00027397,7]
[357397641,1744043450460,-2114.81,0.00027397,7]
[357397642,1744043450470,-2114.81,0.00027397,7]
[357397643,1744043450480,-2114.81,0.00027397,7]
[357397644,1744043450490,-2045.97,0.00027397,7]
[357397645,1744043450639,-4755.06,0.00027397,7]
[357397646,1744043450651,-500.0,0.00027397,7]
[357397647,1744043450661,-2114.81,0.00027397,7]
[357397648,1744043450671,-2114.81,0.00027397,7]
[357397649,1744043450681,-500.0,0.00027397,7]
[357397650,1744043450691,-500.0,0.00027397,7]
[357397651,1744043450701,-2114.81,0.00027397,7]
[357397652,1744043450711,-2114.81,0.00027397,7]
[357397653,1744043450722,-2479.65,0.00027397,7]
[357397654,1744043450732,-500.0,0.00027397,7]
[357397655,1744043450741,-2114.98430649,0.00027397,7]
[357397656,1744043450751,-1969.04,0.00027397,7]
[357397657,1744043450760,-500.0,0.00027397,7]
[357397658,1744043450770,-3369.17,0.00027397,7]
[357397659,1744043450780,-500.0,0.00027397,7]
[357397660,1744043450790,-500.0,0.00027397,7]
[357397661,1744043450800,-500.0,0.00027397,7]
[357397662,1744043450810,-1411.41,0.00027397,7]
[357397663,1744043450819,-500.0,0.00027397,7]
[357397664,1744043450829,-576.77,0.00027397,7]
[357397665,1744043450844,-500.0,0.00027397,7]
[357397666,1744043450854,-500.0,0.00027397,7]
[357397667,1744043450864,-500.0,0.00027397,7]
[357397668,1744043450874,-921.03,0.00027397,7]
[357397669,1744043450884,-1000.0,0.00027397,7]
[357397670,1744043450900,-506.66,0.00027397,7]
[357397671,1744043450910,-500.0,0.00027397,7]
[357397672,1744043450921,-500.0,0.00027397,7]
[357397673,1744043450931,-500.0,0.00027397,7]
[357397674,1744043450941,-151.165071,0.00027397,7]
[357397675,1744043450951,-195.704217,0.00027397,120]
[357397676,1744043450962,-151.0,0.00027397,7]
[357397677,1744043450971,-151.0,0.00027397,7]
[357397678,1744043450982,-1336.27890176,0.00027438,2]
[357397679,1744043450994,-500.0,0.00027584,2]
[357397680,1744043451004,-151.0,0.000276,11]
[357397681,1744043451015,-151.0,0.000276,10]
[357397682,1744043451026,-151.0,0.000276,16]
[357397683,1744043451035,-151.0,0.000276,16]
[357397684,1744043451045,-500.0,0.00027607,2]
[357397685,1744043451055,-500.0,0.00027623,2]
[357397686,1744043451065,-500.0,0.00027635,2]
[357397687,1744043451075,-151.0,0.00027649,7]
[357397688,1744043451085,-160.970312,0.00027649,7]
[357397689,1744043451095,-160.970312,0.00027649,7]
[357397690,1744043451104,-151.0,0.00027649,7]
[357397691,1744043451114,-151.0,0.00027649,7]
[357397692,1744043451126,-151.0,0.00027649,7]
[357397693,1744043451138,-1098.553778,0.00027649,7]
[357397694,1744043451148,-1098.553778,0.00027649,7]
[357397695,1744043451157,-249.240863,0.00027649,7]
[357397696,1744043451166,-249.240863,0.00027649,7]
[357397697,1744043451177,-670.664981,0.00027649,7]
[357397698,1744043451186,-670.664981,0.00027649,7]
[357397699,1744043451197,-151.0,0.0002765,7]
[357397700,1744043451206,-151.0,0.0002765,7]
[357397701,1744043451216,-549.60611556,0.00027652,2]
[357397702,1744043451226,-565.084417,0.0002766,7]
[357397703,1744043451236,-565.084417,0.0002766,7]
[357397704,1744043451246,-225.101779,0.0002766,7]
[357397705,1744043451259,-225.101779,0.0002766,7]
[357397706,1744043451268,-275.759653,0.0002766,7]
[357397707,1744043451277,-275.759653,0.0002766,7]
[357397708,1744043451288,-151.0,0.0002766,7]
[357397709,1744043451298,-178.959688,0.0002766,7]
[357397710,1744043451308,-151.0,0.0002766,7]
[357397711,1744043451317,-944.67463,0.0002766,2]
[357397712,1744043451327,-944.67463,0.0002766,2]
[357397713,1744043451337,-322.434233,0.0002766,7]
[357397714,1744043451348,-322.434233,0.0002766,7]
[357397715,1744043451360,-500.0,0.00027664,2]
[357397716,1744043451373,-265.6098782,0.00027669,10]
[357397717,1744043451384,-151.0,0.00027669,3]
[357397718,1744043451398,-151.0,0.00027669,3]
[357397719,1744043451408,-1189.960806,0.00027669,7]
[357397720,1744043451418,-1189.960806,0.00027669,7]
[357397721,1744043451428,-151.0,0.00027669,7]
[357397722,1744043451437,-252.156935,0.00027669,7]
[357397723,1744043451446,-252.156935,0.00027669,7]
[357397724,1744043451456,-151.0,0.00027669,7]
[357397725,1744043451465,-151.0,0.00027669,7]
[357397726,1744043451475,-151.0,0.00027669,7]
[357397727,1744043451484,-283.040411,0.00027669,7]
[357397728,1744043451493,-283.040411,0.00027669,7]
[357397729,1744043451502,-151.0,0.0002767,7]
[357397730,1744043451512,-229585.31485529,0.0002767,2]
[357397731,1744043451521,-221.399843,0.0002767,7]
[357397732,1744043451530,-221.399843,0.0002767,7]
[357397733,1744043451540,-579.739422,0.0002767,7]
[357397734,1744043451551,-579.739422,0.0002767,7]
[357397735,1744043451561,-151.0,0.0002767,7]
[357397736,1744043451571,-235.536953,0.0002767,7]
[357397737,1744043451581,-167.063115,0.0002767,7]
[357397738,1744043451591,-167.063115,0.0002767,7]
[357397739,1744043451600,-151.0,0.0002767,7]
[357397740,1744043451610,-225.101779,0.0002767,7]
[357397741,1744043451620,-225.101779,0.0002767,7]
[357397742,1744043451630,-275.759653,0.0002767,7]
[357397743,1744043451644,-275.759653,0.0002767,7]
[357397744,1744043451654,-160.970312,0.0002767,7]
[357397745,1744043451664,-160.970312,0.0002767,7]
[357397746,1744043451675,-151.0,0.0002767,7]
[357397747,1744043451685,-151.0,0.0002767,7]
[357397748,1744043451695,-151.0,0.0002767,7]
[357397749,1744043451706,-151.0,0.0002767,7]
[357397750,1744043451715,-151.0,0.0002767,7]
[357397751,1744043451725,-944.67463,0.0002767,2]
[357397752,1744043451735,-944.67463,0.0002767,2]
[357397753,1744043451748,-1098.553778,0.0002767,7]
[357397754,1744043451757,-1098.553778,0.0002767,7]
[357397755,1744043451767,-322.434233,0.0002767,7]
[357397756,1744043451777,-252.156935,0.0002767,7]
[357397757,1744043451787,-322.434233,0.0002767,7]
[357397758,1744043451796,-252.156935,0.0002767,7]
[357397759,1744043451806,-151.0,0.0002767,7]
[357397760,1744043451815,-151.0,0.0002767,7]
[357397761,1744043451825,-151.0,0.0002767,7]
[357397762,1744043451835,-249.240863,0.0002767,7]
[357397763,1744043451844,-249.240863,0.0002767,7]
[357397764,1744043451855,-151.0,0.0002767,7]
[357397765,1744043451864,-283.040411,0.0002767,7]
[357397766,1744043451874,-283.040411,0.0002767,7]
[357397767,1744043451883,-670.664981,0.0002767,7]
[357397768,1744043451895,-670.664981,0.0002767,7]
[357397769,1744043451905,-151.0,0.00027671,7]
[357397770,1744043451914,-175.561691,0.00027671,7]
[357397771,1744043451923,-151.0,0.00027671,7]
[357397772,1744043451933,-151.0,0.00027671,7]
[357397773,1744043451942,-228.360533,0.00027671,7]
[357397774,1744043451952,-228.360533,0.00027671,7]
[357397775,1744043451961,-228.360533,0.00027671,7]
[357397776,1744043451970,-228.360533,0.00027671,7]
[357397777,1744043451980,-151.0,0.00027671,7]
[357397778,1744043451989,-151.0,0.00027671,7]
[357397779,1744043451998,-151.0,0.00027671,7]
[357397780,1744043452008,-295.044979,0.00027671,7]
[357397781,1744043452019,-151.0,0.00027671,7]
[357397782,1744043452028,-289.866581,0.00027671,7]
[357397783,1744043452038,-289.747733,0.00027671,7]
[357397784,1744043452049,-565.084417,0.00027671,7]
[357397785,1744043452060,-565.084417,0.00027671,7]
[357397786,1744043452070,-565.084417,0.00027671,7]
[357397787,1744043452079,-565.084417,0.00027671,7]
[357397788,1744043452088,-654.175396,0.00027671,7]
[357397789,1744043452098,-654.175396,0.00027671,7]
[357397790,1744043452107,-151.0,0.00027671,3]
[357397791,1744043452117,-151.0,0.00027671,3]
[357397792,1744043452126,-151.0,0.00027671,3]
[357397793,1744043452136,-151.0,0.00027671,3]
[357397794,1744043452148,-151.0,0.00027671,3]
[357397795,1744043452158,-151.0,0.00027671,3]
[357397796,1744043452168,-1189.960806,0.00027671,7]
[357397797,1744043452178,-1189.960806,0.00027671,7]
[357397798,1744043452188,-1189.960806,0.00027671,7]
[357397799,1744043452198,-1189.960806,0.00027671,7]
[357397800,1744043452207,-1189.960806,0.00027671,7]
[357397801,1744043452217,-1189.960806,0.00027671,7]
[357397802,1744043452227,-151.0,0.00027671,7]
[357397803,1744043452236,-151.0,0.00027671,7]
[357397804,1744043452245,-151.0,0.00027671,7]
[357397805,1744043452258,-151.0,0.00027671,7]
[357397806,1744043452267,-151.0,0.00027671,7]
[357397807,1744043452277,-151.0,0.00027671,7]
[357397808,1744043452288,-151.0,0.00027671,7]
[357397809,1744043452298,-151.0,0.00027671,7]
[357397810,1744043452308,-250.545304,0.00027671,7]
[357397811,1744043452317,-151.0,0.00027671,7]
[357397812,1744043452327,-151.0,0.00027671,7]
[357397813,1744043452337,-163.990235,0.00027671,7]
[357397814,1744043452347,-500.0,0.00027671,7]
[357397815,1744043452358,-500.0,0.00027671,7]
[357397816,1744043452368,-151.0,0.00027671,7]
[357397817,1744043452378,-151.0,0.00027671,7]
[357397818,1744043452390,-151.0,0.00027671,7]
[357397819,1744043452400,-500.0,0.00027671,7]
[357397820,1744043452410,-500.0,0.00027671,7]
[357397821,1744043452419,-329.73063653,0.00027671,7]
[357397822,1744043452430,-617.94656388,0.00027671,7]
[357397823,1744043452439,-500.0,0.00027671,7]
[357397824,1744043452449,-151.0,0.00027671,7]
[357397825,1744043452458,-151.0,0.00027671,7]
[357397826,1744043452468,-151.0,0.00027671,7]
[357397827,1744043452478,-500.0,0.00027671,7]
[357397828,1744043452487,-513.00149683,0.00027671,7]
[357397829,1744043452496,-500.0,0.00027671,7]
[357397830,1744043452505,-500.0,0.00027671,7]
[357397831,1744043452515,-151.0,0.00027671,7]
[357397832,1744043452525,-151.0,0.00027671,7]
[357397833,1744043452535,-151.0,0.00027671,7]
[357397834,1744043452544,-500.0,0.00027671,7]
[357397835,1744043452554,-500.0,0.00027671,7]
[357397836,1744043452564,-500.0,0.00027671,7]
[357397837,1744043452573,-506.80754823,0.00027671,7]
[357397838,1744043452582,-500.0,0.00027671,7]
[357397839,1744043452592,-500.0,0.00027671,7]
[357397840,1744043452601,-500.0,0.00027671,7]
[357397841,1744043452610,-500.0,0.00027671,7]
[357397842,1744043452620,-500.0,0.00027671,7]
[357397843,1744043452629,-500.0,0.00027671,7]
[357397844,1744043452640,-417.81854057,0.00027671,7]
[357397845,1744043452651,-500.0,0.00027671,7]
[357397846,1744043452660,-500.0,0.00027671,7]
[357397847,1744043452670,-500.0,0.00027671,7]
[357397848,1744043452680,-500.0,0.00027671,7]
[357397849,1744043452689,-506.14967557,0.00027671,7]
[357397850,1744043452699,-500.0,0.00027671,7]
[357397851,1744043452708,-500.0,0.00027671,7]
[357397852,1744043452718,-500.0,0.00027671,7]
[357397853,1744043452728,-500.0,0.00027671,7]
[357397854,1744043452737,-510.85759148,0.00027671,7]
[357397855,1744043452747,-550.62,0.00027671,7]
[357397856,1744043452757,-500.0,0.00027671,7]
[357397857,1744043452766,-500.0,0.00027671,7]
[357397858,1744043452776,-1511.726349,0.00027671,7]
[357397859,1744043452785,-1511.726349,0.00027671,7]
[357397860,1744043452795,-1511.726349,0.00027671,7]
[357397861,1744043452804,-500.0,0.00027671,7]
[357397862,1744043452814,-500.0,0.00027671,7]
[357397863,1744043452824,-1511.726349,0.00027671,7]
[357397864,1744043452833,-1511.726349,0.00027671,7]
[357397865,1744043452843,-1511.726349,0.00027671,7]
[357397866,1744043452853,-575.42939842,0.00027671,7]
[357397867,1744043452863,-500.0,0.00027671,7]
[357397868,1744043452872,-500.0,0.00027671,7]
[357397869,1744043452881,-151.0,0.00027671,7]
[357397870,1744043452893,-151.0,0.00027671,7]
[357397871,1744043452903,-1032.64,0.00027671,7]
[357397872,1744043452913,-585.28,0.00027671,7]
[357397873,1744043452924,-500.0,0.00027671,7]
[357397874,1744043452934,-500.0,0.00027671,7]
[357397875,1744043452943,-157.545006,0.00027671,7]
[357397876,1744043452953,-410.375889,0.00027671,7]
[357397877,1744043452962,-410.375889,0.00027671,7]
[357397878,1744043452973,-157.545006,0.00027671,7]
[357397879,1744043452982,-410.375889,0.00027671,7]
[357397880,1744043453126,-500.0,0.00027671,7]
[357397881,1744043453136,-500.0,0.00027671,7]
[357397882,1744043453147,-410.375889,0.00027671,7]
[357397883,1744043453157,-590.79,0.00027671,7]
[357397884,1744043453167,-410.375889,0.00027671,7]
[357397885,1744043453177,-410.375889,0.00027671,7]
[357397886,1744043453187,-588.03987349,0.00027671,7]
[357397887,1744043453198,-500.0,0.00027671,7]
[357397888,1744043453208,-500.0,0.00027671,7]
[357397889,1744043453219,-500.0,0.00027671,7]
[357397890,1744043453229,-449.804052,0.00027671,7]
[357397891,1744043453239,-449.804052,0.00027671,7]
[357397892,1744043453251,-202.856287,0.00027671,7]
[357397893,1744043453261,-500.0,0.00027671,7]
[357397894,1744043453271,-500.0,0.00027671,7]
[357397895,1744043453281,-500.0,0.00027671,7]
[357397896,1744043453293,-202.856287,0.00027671,7]
[357397897,1744043453304,-500.0,0.00027671,7]
[357397898,1744043453314,-500.0,0.00027671,7]
[357397899,1744043453324,-326.33193586,0.00027671,7]
[357397900,1744043453334,-523.5606504,0.00027671,7]
[357397901,1744043453345,-500.0,0.00027671,7]
[357397902,1744043453354,-500.0,0.00027671,7]
[357397903,1744043453364,-500.0,0.00027671,7]
[357397904,1744043453375,-500.0,0.00027671,7]
[357397905,1744043453385,-500.0,0.00027671,7]
[357397906,1744043453398,-500.0,0.00027671,7]
[357397907,1744043453408,-500.0,0.00027671,7]
[357397908,1744043453418,-500.0,0.00027671,7]
[357397909,1744043453428,-1074.42,0.00027671,7]
[357397910,1744043453438,-809.17,0.00027671,7]
[357397911,1744043453448,-500.0,0.00027671,7]
[357397912,1744043453459,-500.0,0.00027671,7]
[357397913,1744043453469,-545.1,0.00027671,7]
[357397914,1744043453478,-555.94,0.00027671,7]
[357397915,1744043453488,-500.0,0.00027671,7]
[357397916,1744043453498,-500.0,0.00027671,2]
[357397917,1744043453507,-500.0,0.00027671,7]
[357397918,1744043453517,-151.0,0.00027671,7]
[357397919,1744043453526,-151.0,0.00027671,7]
[357397920,1744043453536,-151.0,0.00027671,7]
[357397921,1744043453545,-500.0,0.00027671,7]
[357397922,1744043453555,-500.0,0.00027671,7]
[357397923,1744043453565,-500.0,0.00027671,7]
[357397924,1744043453575,-500.0,0.00027671,7]
[357397925,1744043453584,-706.42,0.00027671,7]
[357397926,1744043453594,-500.0,0.00027671,7]
[357397927,1744043453604,-1000.0,0.00027671,7]
[357397928,1744043453613,-297.04238865,0.00027671,7]
[357397929,1744043453623,-500.0,0.00027671,7]
[357397930,1744043453632,-500.0,0.00027671,7]
[357397931,1744043453642,-500.0,0.00027671,7]
[357397932,1744043453651,-634.12,0.00027671,7]
[357397933,1744043453661,-221.399843,0.00027671,7]
[357397934,1744043453671,-221.399843,0.00027671,7]
[357397935,1744043453680,-221.399843,0.00027671,7]
[357397936,1744043453690,-221.399843,0.00027671,7]
[357397937,1744043453700,-500.0,0.00027671,7]
[357397938,1744043453710,-500.0,0.00027671,7]
[357397939,1744043453719,-500.0,0.00027671,7]
[357397940,1744043453729,-651.83,0.00027671,7]
[357397941,1744043453738,-500.0,0.00027671,7]
[357397942,1744043453748,-500.0,0.00027671,7]
[357397943,1744043453758,-500.0,0.00027671,7]
[357397944,1744043453768,-500.0,0.00027671,7]
[357397945,1744043453778,-500.0,0.00027671,7]
[357397946,1744043453787,-508.44198049,0.00027671,7]
[357397947,1744043453796,-500.0,0.00027671,7]
[357397948,1744043453806,-500.0,0.00027671,7]
[357397949,1744043453816,-805.7,0.00027671,7]
[357397950,1744043453826,-500.0,0.00027671,7]
[357397951,1744043453836,-500.0,0.00027671,7]
[357397952,1744043453846,-500.0,0.00027671,7]
[357397953,1744043453857,-500.0,0.00027671,7]
[357397954,1744043453867,-500.0,0.00027671,7]
[357397955,1744043453878,-151.0,0.00027671,7]
[357397956,1744043453888,-151.0,0.00027671,7]
[357397957,1744043453899,-151.0,0.00027671,7]
[357397958,1744043453908,-500.0,0.00027671,7]
[357397959,1744043453917,-500.0,0.00027671,7]
[357397960,1744043453927,-151.0,0.00027671,7]
[357397961,1744043453937,-151.0,0.00027671,7]
[357397962,1744043453947,-151.0,0.00027671,7]
[357397963,1744043453956,-500.0,0.00027671,7]
[357397964,1744043453966,-500.0,0.00027671,7]
[357397965,1744043453977,-500.0,0.00027671,7]
[357397966,1744043453987,-200.0,0.00027671,7]
[357397967,1744043453997,-587.521375,0.00027671,7]
[357397968,1744043454009,-587.521375,0.00027671,7]
[357397969,1744043454019,-511.30901648,0.00027671,7]
[357397970,1744043454029,-500.0,0.00027671,7]
[357397971,1744043454039,-500.0,0.00027671,7]
[357397972,1744043454049,-587.521375,0.00027671,7]